bitfinex/quotes_SOLUSD_20250924
["timestamp","ask_amount","ask_price","bid_price","bid_amount"]
[1758723832572,2.16345834,213.51,213.46,0.67]
[1758723832896,2.16345834,213.56,213.51,4.68362137]
[1758723833084,2.16345834,213.56,213.52,0.67]
[1758723833772,4.68362137,213.6,213.53,0.67]
[1758723833972,2.16345834,213.58,213.53,0.67]
[1758723834187,28.16345834,213.58,213.54,0.67]
[1758723834386,2.16345834,213.57,213.55,0.67]
[1758723835178,2.16345834,213.57,213.55,5.35267491]
[1758723836690,2.16345834,213.58,213.55,5.35267491]
[1758723837392,2.16345834,213.56,213.51,0.67]
[1758723837594,2.16345834,213.56,213.52,0.67]
[1758723838089,2.16345834,213.56,213.53,0.67]
[1758723839297,2.16345834,213.56,213.53,5.35312486]
[1758723839470,2.16345834,213.56,213.53,0.67]
[1758723840290,2.16345834,213.55,213.49,12.38000696]
[1758723840490,4.68232866,213.57,213.46,12.3816713]
[1758723840792,2.16345834,213.52,213.47,0.67]
[1758723840995,2.16345834,213.53,213.47,2.83345834]
[1758723841295,2.16345834,213.52,213.48,0.67]
[1758723841511,2.16345834,213.51,213.48,0.67]
[1758723841806,2.16345834,213.51,213.43,11.71298388]
[1758723841974,2.16345834,213.48,213.45,0.67]
[1758723842405,2.16345834,213.48,213.46,0.67]
[1758723842979,2.16345834,213.48,213.43,53.88836081]
[1758723843187,2.16345834,213.48,213.44,0.67]
[1758723843393,2.16345834,213.49,213.45,0.67]
[1758723843593,37.05,213.58,213.46,2.83345834]
[1758723843779,2.16345834,213.52,213.47,0.67]
[1758723844282,2.16345834,213.51,213.47,0.67]
[1758723844706,2.16345834,213.52,213.47,0.67]
[1758723844880,2.16345834,213.51,213.44,13.73775558]
[1758723845081,4.68288215,213.55,213.48,0.67]
[1758723845286,2.16345834,213.51,213.48,0.67]
[1758723845683,2.16345834,213.51,213.49,0.67]
[1758723846084,2.16345834,213.52,213.49,0.67]
[1758723846394,2.16345834,213.5,213.43,4.68537693]
[1758723846600,2.16345834,213.48,213.44,0.67]
[1758723846792,2.16345834,213.48,213.45,0.67]
[1758723847002,2.16345834,213.48,213.43,4.68537693]
[1758723847003,2.16345834,213.48,213.43,0.67]
[1758723847182,2.16345834,213.45,213.4,0.67]
[1758723847387,2.16345834,213.43,213.37,37.51]
[1758723847694,2.16345834,213.42,213.37,0.67]
[1758723847894,2.16345834,213.42,213.34,5.35734768]
[1758723847895,2.16345834,213.39,213.34,5.35734768]
[1758723848098,0.21,213.42,213.33,0.2]
[1758723848099,2.16345834,213.35,213.33,0.2]
[1758723848299,2.16345834,213.34,213.33,0.2]
[1758723848986,2.16345834,213.36,213.33,0.87]
[1758723849184,2.16345834,213.36,213.33,0.2]
[1758723849408,26.0,213.4,213.33,4.88756943]
[1758723849585,4.89591707,213.41,213.33,4.88756943]
[1758723849586,2.16345834,213.35,213.33,4.88756943]
[1758723849783,2.16345834,213.37,213.34,0.67]
[1758723849988,2.16345834,213.36,213.33,4.88756943]
[1758723850285,2.16345834,213.37,213.34,0.67]
[1758723850491,2.16345834,213.39,213.35,0.67]
[1758723850887,2.16345834,213.37,213.33,4.88756943]
[1758723851092,2.16345834,213.37,213.33,0.2]
[1758723851093,2.16345834,213.34,213.33,0.2]
[1758723851806,0.21,213.39,213.33,0.2]
[1758723852200,26.0,213.37,213.33,0.2]
[1758723852507,26.0,213.37,213.33,4.88756184]
[1758723852680,2.16345834,213.35,213.33,4.88756184]
[1758723852881,2.16345834,213.34,213.33,0.2]
[1758723853207,2.37345834,213.34,213.33,0.2]
[1758723853707,2.16345834,213.34,213.33,0.2]
[1758723854793,28.16345834,213.34,213.33,0.2]
[1758723855511,2.16345834,213.34,213.33,0.2]
[1758723855898,2.16345834,213.35,213.33,0.2]
[1758723856106,2.16345834,213.34,213.33,0.2]
[1758723858195,33.06081186,213.34,213.33,0.2]
[1758723858393,7.06081186,213.34,213.33,0.2]
[1758723858925,26.0,213.31,213.22,0.67]
[1758723859124,2.16345834,213.24,213.22,0.67]
[1758723859326,2.16345834,213.25,213.23,0.67]
[1758723859628,2.16345834,213.24,213.21,4.69020774]
[1758723859924,2.16345834,213.24,213.21,5.36020774]
[1758723860216,2.16345834,213.24,213.18,2.16345834]
[1758723860398,2.16345834,213.23,213.18,5.36084607]
[1758723860601,2.16345834,213.23,213.19,0.67]
[1758723860914,2.16345834,213.29,213.2,0.72]
[1758723860915,2.16345834,213.24,213.2,0.72]
[1758723861223,26.0,213.26,213.2,0.72]
[1758723861422,30.68919855,213.26,213.18,0.72]
[1758723861599,42.62197825,213.26,213.18,0.72]
[1758723862499,26.21,213.26,213.19,4.69065153]
[1758723862699,5.34555574,213.23,213.19,4.69065153]
[1758723862898,5.34555574,213.23,213.2,0.72]
[1758723863603,5.34555574,213.23,213.18,4.69087156]
[1758723863918,5.34555574,213.23,213.19,0.72]
[1758723864120,5.34555574,213.23,213.18,4.69087156]
[1758723864121,5.34555574,213.23,213.2,0.72]
[1758723864310,5.34555574,213.24,213.2,0.72]
[1758723864516,5.34555574,213.25,213.2,0.72]
[1758723864715,5.34555574,213.27,213.21,6.06555574]
[1758723864912,41.52780037,213.32,213.22,6.06555574]
[1758723865105,5.34555574,213.26,213.23,0.72]
[1758723865313,5.34555574,213.26,213.22,0.72]
[1758723865501,5.34555574,213.27,213.22,0.72]
[1758723865825,5.34555574,213.27,213.23,5.4097716]
[1758723866013,26.0,213.29,213.24,0.72]
[1758723866197,5.34555574,213.28,213.24,0.72]
[1758723866399,0.21,213.33,213.25,0.72]
[1758723866400,5.34555574,213.3,213.25,0.72]
[1758723866699,5.34555574,213.3,213.26,0.72]
[1758723866905,5.34555574,213.29,213.26,0.72]
[1758723867309,4.68764776,213.33,213.23,21.75975636]
[1758723867310,5.34555574,213.3,213.24,5.34555574]
[1758723867524,5.34555574,213.3,213.27,4.68889201]
[1758723867717,5.34555574,213.3,213.27,5.40889201]
[1758723868214,5.34555574,213.31,213.28,0.72]
[1758723868794,5.34555574,213.31,213.29,0.72]
[1758723870427,5.34555574,213.31,213.29,5.40842167]
[1758723870722,5.34555574,213.32,213.29,5.40842167]
[1758723870922,5.34555574,213.32,213.29,4.68842167]
[1758723871127,4.68661277,213.38,213.3,0.72]
[1758723871307,5.34555574,213.34,213.3,0.72]
[1758723871625,5.34555574,213.34,213.31,5.40795626]
[1758723871819,5.34555574,213.32,213.31,0.72]
[1758723872035,5.34555574,213.32,213.28,0.72]
[1758723872198,5.34555574,213.31,213.28,5.4086301]
[1758723872813,5.34555574,213.31,213.29,0.72]
[1758723873212,5.34555574,213.3,213.26,0.72]
[1758723873619,5.34555574,213.27,213.24,4.68955167]
[1758723873815,5.34555574,213.25,213.2,0.72]
[1758723874004,5.34555574,213.23,213.18,4.69070069]
[1758723874213,5.34555574,213.21,213.18,0.72]
[1758723874717,5.34555574,213.22,213.18,0.72]
[1758723875120,5.34555574,213.22,213.19,0.72]
[1758723875425,5.34555574,213.22,213.19,5.41047395]
[1758723875940,26.0,213.26,213.2,0.72]
[1758723876099,5.34555574,213.23,213.2,0.72]
[1758723876303,5.34555574,213.23,213.19,4.69047395]
[1758723876603,5.34555574,213.23,213.19,5.41047395]
[1758723877005,5.34555574,213.22,213.16,6.06555574]
[1758723877236,5.34555574,213.22,213.17,4.69109161]
[1758723877428,5.34555574,213.22,213.17,5.41109161]
[1758723877610,5.34555574,213.22,213.18,0.72]
[1758723878633,26.0,213.27,213.19,0.72]
[1758723878858,7.97759208,213.23,213.19,0.72]
[1758723879135,7.97759208,213.22,213.19,0.72]
[1758723879312,7.97759208,213.22,213.2,4.69043151]
[1758723879930,30.89917872,213.26,213.21,0.72]
[1758723879931,7.97759208,213.25,213.21,0.72]
[1758723880133,7.97759208,213.27,213.22,0.72]
[1758723880346,7.97759208,213.27,213.23,0.72]
[1758723880648,33.97759208,213.27,213.21,8.69759208]
[1758723880810,7.97759208,213.3,213.24,8.69759208]
[1758723881010,134.11,213.33,213.26,7.97759208]
[1758723881011,7.97759208,213.32,213.26,7.97759208]
[1758723881442,7.97759208,213.34,213.29,4.68845234]
[1758723881624,38.66498679,213.34,213.29,4.68845234]
[1758723881823,7.97759208,213.33,213.29,4.68845234]
[1758723882626,7.97759208,213.33,213.28,4.68867216]
[1758723882827,0.21,213.33,213.26,0.72]
[1758723883025,7.97759208,213.31,213.25,7.97759208]
[1758723883227,7.97759208,213.3,213.24,4.68955167]
[1758723883423,7.97759208,213.28,213.22,7.97759208]
[1758723883812,7.97759208,213.3,213.24,7.97759208]
[1758723884319,7.97759208,213.29,213.23,8.69759208]
[1758723884648,7.97759208,213.29,213.2,16.4165103]
[1758723884649,3.39018346,213.32,213.26,3.39018346]
[1758723884950,29.39018346,213.32,213.26,0.72]
[1758723885114,29.39018346,213.32,213.26,4.11018346]
[1758723885312,26.0,213.29,213.26,0.72]
[1758723886238,3.39018346,213.32,213.27,0.72]
[1758723886411,26.0,213.31,213.27,0.72]
[1758723886610,26.0,213.31,213.27,5.40886217]
[1758723886807,26.0,213.31,213.27,8.79904563]
[1758723887014,26.0,213.31,213.27,8.07904563]
[1758723887319,26.0,213.31,213.26,3.39018346]
[1758723887536,26.0,213.31,213.26,4.11018346]
[1758723888319,26.0,213.31,213.26,8.79923894]
[1758723888542,3.95442526,213.45,213.26,8.79923894]
[1758723888543,133.9,213.38,213.29,3.39018346]
[1758723888715,133.9,213.38,213.26,3.39018346]
[1758723888716,3.39018346,213.32,213.26,3.39018346]
[1758723889041,3.39018346,213.29,213.22,8.80017501]
[1758723889344,3.39018346,213.29,213.23,3.39018346]
[1758723889750,3.39018346,213.29,213.22,5.40999155]
[1758723890052,3.39018346,213.3,213.24,3.39018346]
[1758723890342,26.0,213.3,213.26,3.39018346]
[1758723890717,26.0,213.3,213.27,0.71]
[1758723890918,26.0,213.3,213.26,3.39018346]
[1758723891354,26.0,213.3,213.25,3.39018346]
[1758723891551,26.0,213.3,213.26,0.71]
[1758723891845,26.0,213.3,213.27,4.10018346]
[1758723892048,26.0,213.3,213.25,0.71]
[1758723892223,26.0,213.3,213.26,8.78923453]
[1758723892424,26.0,213.3,213.26,5.39905107]
[1758723892668,26.0,213.3,213.25,3.39018346]
[1758723892955,26.0,213.3,213.26,0.71]
[1758723893341,26.0,213.3,213.26,3.39018346]
[1758723893546,26.0,213.3,213.27,0.71]
[1758723894428,26.0,213.3,213.26,3.39018346]
[1758723894754,26.0,213.3,213.26,4.10018346]
[1758723895069,0.21,213.37,213.28,3.39018346]
[1758723895243,26.0,213.33,213.28,4.10018346]
[1758723895441,26.0,213.33,213.28,3.39018346]
[1758723895635,29.39018346,213.33,213.27,3.39018346]
[1758723895839,26.0,213.34,213.29,3.39018346]
[1758723896042,26.0,213.34,213.3,0.71]
[1758723896453,29.39018346,213.34,213.3,5.3981929]
[1758723896640,26.0,213.34,213.31,4.10018346]
[1758723896836,133.9,213.38,213.32,3.39018346]
[1758723897150,26.0,213.35,213.31,3.39018346]
[1758723897455,26.0,213.35,213.3,8.07837636]
[1758723897639,26.0,213.35,213.31,0.71]
[1758723898042,29.60018346,213.35,213.29,3.39018346]
[1758723898347,8.07780251,213.33,213.27,3.39018346]
[1758723898649,8.07780251,213.33,213.27,8.0790577]
[1758723898953,34.07780251,213.33,213.27,4.68887424]
[1758723899145,34.07780251,213.33,213.27,8.0790577]
[1758723900338,3.39018346,213.29,213.22,40.17018346]
[1758723900540,3.39018346,213.29,213.21,0.69]
[1758723900541,3.39018346,213.27,213.21,4.08018346]
[1758723901050,3.39018346,213.28,213.22,3.39018346]
[1758723901439,3.39018346,213.28,213.23,3.39018346]
[1758723901641,3.39018346,213.29,213.23,8.07983123]
[1758723901830,26.0,213.3,213.25,3.39018346]
[1758723902028,0.21,213.32,213.26,4.08018346]
[1758723902029,26.0,213.32,213.26,4.08018346]
[1758723902256,26.0,213.32,213.27,3.39018346]
[1758723902580,26.0,213.32,213.23,16.41407679]
[1758723902581,26.0,213.32,213.28,4.08018346]
[1758723903169,0.21,213.37,213.29,3.39018346]
[1758723903465,3.39018346,213.38,213.3,0.69]
[1758723903664,3.15541831,213.39,213.33,8.0777567]
[1758723903969,26.0,213.37,213.33,4.68757324]
[1758723904132,26.0,213.37,213.33,5.37757324]
[1758723904329,0.21,213.41,213.33,19.7966898]
[1758723904657,3.15434404,213.43,213.39,3.39018346]
[1758723904833,3.39018346,213.45,213.34,0.69]
[1758723904834,3.15434404,213.47,213.41,3.39018346]
[1758723905030,3.95442526,213.49,213.33,92.82210035]
[1758723905031,3.39018346,213.49,213.43,3.39018346]
[1758723905451,26.0,213.48,213.43,3.39018346]
[1758723905633,3.39018346,213.51,213.46,4.68471844]
[1758723906143,3.39018346,213.52,213.46,8.0749019]
[1758723906348,3.39018346,213.55,213.49,3.39018346]
[1758723906552,26.0,213.52,213.49,7.9542096]
[1758723906753,7.9542096,213.55,213.49,8.6442096]
[1758723906953,44.9342096,213.57,213.51,7.9542096]
[1758723907157,8.0542096,213.57,213.51,7.9542096]
[1758723907359,0.1,213.57,213.54,7.9542096]
[1758723907568,0.1,213.57,213.55,0.69]
[1758723907869,26.1,213.57,213.55,0.69]
[1758723908441,26.1,213.57,213.53,7.9542096]
[1758723908666,26.1,213.57,213.53,8.6442096]
[1758723909165,4.78231918,213.57,213.51,7.9542096]
[1758723909548,12.73652878,213.57,213.5,0.69]
[1758723909858,7.9542096,213.55,213.47,0.69]
[1758723910044,33.9542096,213.55,213.49,7.9542096]
[1758723910360,33.9542096,213.55,213.47,0.69]
[1758723910361,26.1,213.57,213.52,7.9542096]
[1758723910569,26.1,213.57,213.46,16.39642193]
[1758723910570,0.1,213.57,213.54,7.9542096]
[1758723910769,0.1,213.57,213.55,8.6442096]
[1758723911175,0.1,213.57,213.56,0.69]
[1758723911374,0.1,213.57,213.56,8.6442096]
[1758723911745,0.1,213.57,213.56,13.32673441]
[1758723912468,0.1,213.57,213.56,27.06448999]
[1758723913552,0.1,213.57,213.53,13.73775558]
[1758723913751,0.1,213.57,213.55,7.9542096]
[1758723913958,0.1,213.57,213.54,8.6442096]
[1758723915044,0.1,213.57,213.54,12.63709104]
[1758723915364,0.1,213.57,213.54,7.9542096]
[1758723915557,0.1,213.57,213.55,0.69]
[1758723915761,0.1,213.57,213.55,8.6442096]
[1758723915957,0.1,213.57,213.56,4.68252481]
[1758723916153,0.1,213.57,213.55,7.9542096]
[1758723916358,0.1,213.57,213.5,62.88]
[1758723916359,0.1,213.57,213.53,7.9542096]
[1758723916957,0.1,213.57,213.53,0.69]
[1758723917152,0.1,213.57,213.54,0.69]
[1758723917360,0.1,213.57,213.53,7.9542096]
[1758723917581,0.1,213.57,213.54,7.9542096]
[1758723917763,0.1,213.57,213.54,0.69]
[1758723917954,0.1,213.57,213.55,0.69]
[1758723918156,0.1,213.57,213.55,8.6442096]
[1758723918356,0.1,213.57,213.56,8.6442096]
[1758723918766,0.1,213.57,213.56,22.38196518]
[1758723919358,0.1,213.57,213.56,8.78637117]
[1758723920488,0.1,213.57,213.56,13.46889598]
[1758723922572,0.1,213.57,213.56,13.32673441]
[1758723922753,0.1,213.57,213.55,36.88]
[1758723922754,0.1,213.57,213.52,14.24559401]
[1758723922950,0.1,213.57,213.56,8.6042096]
[1758723923375,0.1,213.57,213.55,7.9542096]
[1758723923579,0.1,213.57,213.56,7.9542096]
[1758723923754,0.1,213.57,213.56,8.6042096]
[1758723924380,0.1,213.57,213.56,13.28673441]
[1758723924556,0.1,213.57,213.56,8.6042096]
[1758723924962,0.1,213.57,213.56,13.28673441]
[1758723925163,0.1,213.57,213.56,5.33252481]
[1758723925374,0.1,213.57,213.56,13.28673441]
[1758723926860,0.1,213.57,213.52,0.79216157]
[1758723927182,0.1,213.57,213.56,7.9542096]
[1758723927365,0.1,213.57,213.56,22.34196518]
[1758723927972,37.69995034,213.68,213.56,22.34196518]
[1758723927973,0.31,213.71,213.57,13.73775558]
[1758723928170,7.9542096,213.7,213.64,7.9542096]
[1758723928884,12.63371449,213.7,213.64,12.63489633]
[1758723929090,12.63371449,213.7,213.64,7.9542096]
[1758723929284,33.9542096,213.7,213.64,12.6349528]
[1758723929458,7.9542096,213.69,213.63,7.9542096]
[1758723930185,7.9542096,213.68,213.62,8.6042096]
[1758723930682,4.67956948,213.7,213.64,7.9542096]
[1758723930888,7.9542096,213.68,213.62,7.9542096]
[1758723931385,7.9542096,213.67,213.55,11.70650335]
[1758723931577,26.31,213.67,213.59,7.9542096]
[1758723931772,7.9542096,213.66,213.6,7.9542096]
[1758723931978,33.9542096,213.67,213.62,7.9542096]
[1758723932604,33.9542096,213.67,213.61,7.9542096]
[1758723932890,7.9542096,213.66,213.61,4.68142877]
[1758723933094,38.63445948,213.67,213.62,7.9542096]
[1758723933277,38.63445948,213.67,213.61,12.63563837]
[1758723933479,38.94445948,213.67,213.61,7.9542096]
[1758723933780,7.9542096,213.65,213.59,8.6042096]
[1758723934590,7.9542096,213.65,213.59,7.9542096]
[1758723934899,8.2642096,213.65,213.59,7.9542096]
[1758723935110,4.68077139,213.64,213.59,7.9542096]
[1758723935294,7.9542096,213.65,213.6,7.9542096]
[1758723935588,7.9542096,213.65,213.57,41.54225037]
[1758723935589,26.0,213.67,213.61,8.6042096]
[1758723935794,33.9542096,213.67,213.61,8.6042096]
[1758723936793,33.9542096,213.67,213.61,13.28546861]
[1758723936993,7.9542096,213.66,213.57,62.16135792]
[1758723937191,33.9542096,213.66,213.6,7.9542096]
[1758723937387,33.9542096,213.66,213.6,8.6042096]
[1758723938281,33.9542096,213.66,213.6,7.9542096]
[1758723938484,26.0,213.66,213.61,7.9542096]
[1758723938684,26.0,213.66,213.61,0.65]
[1758723938988,36.00434456,213.66,213.61,0.65]
[1758723939187,30.68049825,213.66,213.61,0.65]
[1758723939490,36.00434456,213.66,213.61,5.33136108]
[1758723939690,4.67923822,213.71,213.62,0.65]
[1758723939871,4.67923822,213.71,213.64,5.32384631]
[1758723940186,26.0,213.67,213.63,5.32384631]
[1758723940393,26.0,213.67,213.63,5.97384631]
[1758723940693,31.32384631,213.68,213.62,5.32384631]
[1758723940869,10.00414622,213.67,213.61,5.32384631]
[1758723941476,10.00414622,213.67,213.6,5.97384631]
[1758723942897,5.32384631,213.67,213.61,5.97384631]
[1758723943089,5.63384631,213.67,213.61,5.32384631]
[1758723943388,5.32384631,213.67,213.62,0.65]
[1758723943568,31.32384631,213.67,213.62,0.65]
[1758723943768,36.00396721,213.67,213.62,0.65]
[1758723943985,36.31396721,213.67,213.61,5.32384631]
[1758723944692,36.00396721,213.67,213.61,5.32384631]
[1758723944895,5.32384631,213.66,213.6,10.65540958]
[1758723945578,36.00396721,213.67,213.6,5.33156327]
[1758723945787,36.00396721,213.67,213.61,5.32384631]
[1758723946299,5.32384631,213.66,213.6,10.65540958]
[1758723946678,6.84287353,213.66,213.6,7.49403656]
[1758723947074,2.16247329,213.66,213.6,7.49403656]
[1758723947470,26.0,213.67,213.6,7.49403656]
[1758723947675,28.16247329,213.67,213.62,2.16247329]
[1758723947896,26.0,213.67,213.61,13.73775558]
[1758723948094,26.0,213.67,213.63,2.81247329]
[1758723948304,26.0,213.68,213.64,2.81247329]
[1758723948483,26.0,213.68,213.65,0.65]
[1758723948794,26.0,213.68,213.63,6.84342071]
[1758723949004,2.47247329,213.67,213.6,4.68164794]
[1758723949176,28.16247329,213.68,213.62,2.16247329]
[1758723949379,28.16247329,213.68,213.63,0.65]
[1758723949585,2.16247329,213.71,213.66,2.16247329]
[1758723949876,2.16247329,213.71,213.61,13.73775558]
[1758723950081,0.1,213.73,213.66,2.81247329]
[1758723950082,2.16247329,213.72,213.66,2.81247329]
[1758723950282,26.0,213.71,213.66,2.81247329]
[1758723950803,26.0,213.71,213.67,4.68011419]
[1758723951191,28.16247329,213.72,213.67,16.38039967]
[1758723951392,28.16247329,213.72,213.67,17.08039967]
[1758723951798,2.26247329,213.73,213.68,0.7]
[1758723952098,0.1,213.73,213.69,2.86247329]
[1758723952307,0.1,213.73,213.69,0.7]
[1758723952688,0.1,213.73,213.7,12.39864295]
[1758723952890,0.1,213.73,213.71,0.7]
[1758723953208,0.1,213.73,213.72,2.16247329]
[1758723953400,0.1,213.73,213.72,2.86247329]
[1758723954203,0.31,213.86,213.73,13.59559401]
[1758723954402,0.31,213.86,213.78,2.16247329]
[1758723954403,2.16247329,213.85,213.78,2.16247329]
[1758723954579,2.16247329,213.85,213.78,2.86247329]
[1758723954778,2.16247329,213.85,213.79,4.67748725]
[1758723955193,0.1,213.92,213.79,4.67748725]
[1758723955194,4.98532382,213.89,213.83,2.16247329]
[1758723955397,0.1,213.92,213.85,2.16247329]
[1758723955585,0.41,213.92,213.85,2.16247329]
[1758723955795,2.57247329,213.92,213.86,2.16247329]
[1758723955987,26.0,213.91,213.85,2.16247329]
[1758723956184,5.08485407,213.92,213.84,0.7]
[1758723956405,7.24732736,213.92,213.85,2.16247329]
[1758723956615,26.0,213.91,213.85,5.31209315]
[1758723956791,26.0,213.91,213.86,5.31209315]
[1758723956998,30.98490915,213.91,213.86,5.31209315]
[1758723957197,30.67490915,213.91,213.87,5.31209315]
[1758723958511,0.1,213.92,213.89,5.31209315]
[1758723958814,0.1,213.92,213.88,5.31209315]
[1758723958995,0.1,213.92,213.88,6.01209315]
[1758723959320,0.1,213.92,213.9,5.31209315]
[1758723959488,0.1,213.94,213.91,36.82]
[1758723959687,0.1,213.94,213.93,5.31209315]
[1758723960114,0.1,213.94,213.93,0.68]
[1758723960305,0.1,213.94,213.93,5.99209315]
[1758723960506,0.1,213.94,213.93,19.58768716]
[1758723960704,9.43270655,214.03,214.02,5.31209315]
[1758723960898,9.43270655,214.03,214.02,5.99209315]
[1758723962017,9.43270655,214.03,214.02,5.99209315]
[1758723962319,9.43270655,214.03,214.02,0.68]
[1758723962487,9.43270655,214.03,214.02,5.31209315]
[1758723962690,9.43270655,214.03,214.02,5.99209315]
[1758723963699,9.43270655,214.03,214.02,42.93209315]
[1758723967126,9.43270655,214.03,214.02,47.60455366]
[1758723968500,9.43270655,214.03,214.02,42.25246051]
[1758723968699,9.43270655,214.03,214.02,47.56455366]
[1758723968927,9.43270655,214.03,213.98,5.35320207]
[1758723969126,9.43270655,214.03,213.99,37.58]
[1758723969327,9.43270655,214.03,214.02,5.31209315]
[1758723969534,9.43270655,214.03,214.02,42.87209315]
[1758723970713,9.43270655,214.03,214.02,37.56]
[1758723971208,9.43270655,214.03,214.02,47.54455366]
[1758723972329,9.43270655,214.03,214.02,0.68]
[1758723972523,9.43270655,214.03,213.99,5.99209315]
[1758723972720,9.43270655,214.03,214.0,36.84]
[1758723972927,9.43270655,214.03,214.01,37.52]
[1758723973119,9.43270655,214.03,214.01,42.19263812]
[1758723973633,9.18615154,214.03,214.02,37.54]
[1758723973940,0.51,214.02,213.93,0.68]
[1758723974146,5.31209315,214.0,213.94,36.94]
[1758723974443,5.31209315,213.97,213.9,5.99209315]
[1758723974615,5.31209315,213.97,213.91,42.25209315]
[1758723974819,5.31209315,213.97,213.91,36.94]
[1758723975015,5.31209315,213.98,213.92,5.31209315]
[1758723975331,5.31209315,213.98,213.91,41.61465192]
[1758723975521,5.31209315,213.97,213.91,46.92674507]
[1758723975726,5.31209315,213.98,213.92,42.25209315]
[1758723975933,5.31209315,213.98,213.92,36.94]
[1758723976243,5.31209315,213.98,213.93,36.94]
[1758723976447,14.36840986,214.03,213.94,5.31209315]
[1758723976613,14.36840986,214.03,213.96,5.31209315]
[1758723976614,9.18615154,214.03,213.96,5.31209315]
[1758723976812,5.31209315,214.02,213.97,37.62]
[1758723977242,14.49824469,214.03,213.98,5.35333395]
[1758723977452,9.18615154,214.03,213.99,0.68]
[1758723977846,14.49824469,214.03,213.97,42.25209315]
[1758723978213,9.18615154,214.03,213.97,10.66561764]
[1758723978612,5.31209315,214.02,213.98,36.92]
[1758723978815,5.82209315,214.02,213.98,36.92]
[1758723979025,5.31209315,214.02,213.98,36.92]
[1758723979553,5.31209315,214.02,213.98,0.68]
[1758723980047,5.31209315,214.02,213.94,0.68]
[1758723980048,10.49459102,214.02,213.94,0.68]
[1758723980237,5.31209315,214.0,213.95,36.92]
[1758723980442,5.31209315,213.98,213.96,36.92]
[1758723980648,5.31209315,213.99,213.96,36.92]
[1758723981459,5.31209315,213.97,213.95,36.92]
[1758723981625,5.18333395,213.98,213.95,36.92]
[1758723981824,5.31209315,213.97,213.94,36.92]
[1758723982128,5.31209315,213.99,213.94,0.68]
[1758723982332,13.85860098,214.03,213.95,5.99209315]
[1758723982533,9.18615154,214.03,213.97,5.31209315]
[1758723982735,5.31209315,214.01,213.98,36.92]
[1758723982934,9.18615154,214.03,213.98,36.92]
[1758723983234,5.31209315,214.01,213.98,36.92]
[1758723983440,5.31209315,214.0,213.95,0.68]
[1758723983743,9.98456731,214.02,213.98,36.94]
[1758723984138,5.31209315,214.01,213.98,36.94]
[1758723985043,5.31209315,214.01,213.95,0.68]
[1758723985360,9.98478933,214.01,213.95,5.35384644]
[1758723985650,5.31209315,214.02,213.96,36.92]
[1758723985862,9.18615154,214.03,213.97,0.68]
[1758723986049,14.49824469,214.03,213.97,0.68]
[1758723986361,19.17049701,214.03,213.97,0.68]
[1758723986566,9.18615154,214.03,213.97,0.68]
[1758723986734,16.01329501,214.03,213.97,0.68]
[1758723987133,16.01329501,214.03,213.98,36.9]
[1758723987433,11.34104696,214.03,213.98,37.58]
[1758723987634,9.18615154,214.03,213.98,41.57316066]
[1758723987863,9.18615154,214.03,213.99,2.83489542]
[1758723988430,9.18615154,214.03,214.0,0.68]
[1758723989463,9.18615154,214.03,214.01,0.68]
[1758723989658,9.18615154,214.03,214.02,5.35246051]
[1758723990032,9.18615154,214.03,214.02,10.65692929]
[1758723990928,9.18615154,214.03,214.02,5.35246051]
[1758723991126,9.18615154,214.03,214.02,10.65692929]
[1758723991632,9.18615154,214.03,214.02,24.39468487]
[1758723993133,9.18615154,214.03,214.02,61.23468487]
[1758723994540,1e-08,214.03,214.02,61.23468487]
[1758723994864,23.33711587,214.26,214.02,42.21246051]
[1758723994865,5.30446878,214.1,214.02,42.21246051]
[1758723995030,5.30446878,214.09,214.02,47.51692929]
[1758723995230,5.30446878,214.09,214.02,46.83692929]
[1758723995436,5.30446878,214.06,213.99,0.14216157]
[1758723995671,4.6722422,214.03,213.98,36.98]
[1758723995850,0.51,214.03,213.98,36.98]
[1758723996367,5.81446878,214.03,213.98,36.98]
[1758723996564,5.30446878,214.03,213.98,37.02]